Cogmind - Beta 12 *** ADVENTURER MODE // 2023.05.03 @ 15:15:46 Player: NED1124 Result: Destroyed by Y-45 Defender with Heavy Assault Rifle Performance ------------- Evolutions (1) 500 Regions Visited (4) 800 Robots Destroyed (13) 65 Value Destroyed (413) 413 Prototype IDs (0) 0 Alien Tech Used (0) 0 Bonus (0) 0 TOTAL SCORE: 1778 Bonus ------- None Cogmind --------- Core Integrity 0/400 Matter 300/300 Energy 100/100 System Corruption 0% Temperature Cool (0) Movement Walking (120) Location -9/Storage Parts ------- > --- POWER (1) -------- (None) > --- PROPULSION (3) --- Aluminum Leg > --- UTILITY (3) ------ (None) > --- WEAPON (2) ------- (None) > --- INVENTORY (5) ---- EM Pulse Gun Datajack Peak State ------------ > --- POWER ------------ Improved Ion Engine > --- PROPULSION ------- Aluminum Leg Aluminum Leg Improved Aluminum Leg > --- UTILITY ---------- Small Storage Unit Shield Generator > --- WEAPON ----------- Light Assault Rifle Light Assault Rifle > --- INVENTORY -------- Ion Engine Aluminum Leg Aluminum Leg Aluminum Leg EM Pulse Gun Assault Rifle Datajack [Rating: 11] Favorites ----------- Power Ion Engine Engine Ion Engine Propulsion Aluminum Leg Leg Aluminum Leg Utility Small Storage Unit Device Shield Generator Storage Small Storage Unit Weapon Light Assault Rifle Energy Gun EM Pulse Gun Ballistic Gun Light Assault Rifle Build | -11 -10 -10 -9 -9 ------- Run | Jun Mat Min Mat Sto Slots Evolved 2 | . . . 2 . Power . | . . . . . Propulsion 1 | . . . 1 . Utility 1 | . . . 1 . Weapon . | . . . . . Parts Attached 20 | 6 2 1 4 7 Power 3 | 1 . . 1 1 Engine 3 | 1 . . 1 1 Core . | . . . . . Reactor . | . . . . . Propulsion 8 | 2 . . 2 4 Treads . | . . . . . Leg 8 | 2 . . 2 4 Wheel . | . . . . . Hover . | . . . . . Flight . | . . . . . Utility 3 | 1 . 1 1 . Device 2 | . . 1 1 . Storage 1 | 1 . . . . Processor . | . . . . . Hackware . | . . . . . Protection . | . . . . . Artifact . | . . . . . Weapon 6 | 2 2 . . 2 Energy Gun 4 | 2 . . . 2 Energy Cannon . | . . . . . Ballistic Gun 2 | . 2 . . . Ballistic Cannon . | . . . . . Launcher . | . . . . . Special Weapon . | . . . . . Impact Weapon . | . . . . . Slashing Weapon . | . . . . . Piercing Weapon . | . . . . . Special Melee Weapon . | . . . . . Unidentified Prototypes . | . . . . . Parts Lost 9 | . . 1 . 8 Power 2 | . . . . 2 Propulsion 4 | . . . . 4 Utility 1 | . . 1 . . Weapon 2 | . . . . 2 Highest Loss Streak 4 | . . 1 . 4 To Critical Strikes . | . . . . . Average Slot Usage (%) 63 | . 85 93 79 40 Engine 9 | . 14 14 11 5 Leg 23 | . 28 28 33 17 Device 4 | . . 7 2 4 Storage 8 | . 14 14 11 4 Energy Gun 2 | . 18 . . 1 Ballistic Gun 14 | . 9 28 22 8 Naked Turns 110 | . . . . 110 Heaviest Build 16 | 14 14 13 16 16 Greatest Support 33 | 20 20 20 33 33 Greatest Overweight (x) 1 | 1 . . . 1 Average Overweight (x) . | . . . . . Largest Inventory Capacity 8 | 8 8 8 8 8 Average Capacity 7 | 7 8 8 8 6 Most Carried 8 | 2 4 7 8 7 Average Carried 4 | 1 2 5 6 5 Final Capacity 8 | 8 8 8 8 5 Final Carried 7 | 2 4 7 7 2 Class Distribution -------------------- 76% | Mutant 23% | Scavenger-Mutant Dominant Class ---------------- Mutant | -10/Materials Mutant | -10/Mines Scavenger-Mutant | -9/Materials Mutant | -9/Storage Resources | -11 -10 -10 -9 -9 ----------- Run | Jun Mat Min Mat Sto Matter Collected 450 | 213 47 67 34 89 Remotely . | . . . . . Salvage Created 505 | . 90 183 54 178 Parts 33 | . 8 10 3 12 Haulers Intercepted . | . . . . . Recyclers Shooed 1 | . . . . 1 Parts Field Recycled . | . . . . . Retrieved Matter . | . . . . . Parts Self-Destructed . | . . . . . Prevented . | . . . . . Kills | -11 -10 -10 -9 -9 ------- Run | Jun Mat Min Mat Sto Combat Hostiles Destroyed 12 | . 3 4 1 4 Guns 12 | . 3 4 1 4 Classes Destroyed 5 | . 2 1 1 1 Watcher 1 | . 1 . . . Swarmer 3 | . 3 . . . Grunt 6 | . . 4 . 2 Duelist 1 | . . . . 1 Sentry 2 | . . . 1 1 Best Kill Streak 4 | . 4 2 1 2 Combat Bots Only 3 | . 3 2 1 2 Max Kills in Single Turn 1 | . 1 1 1 1 Gunslinging . | . . . . . Exploded . | . . . . . Melee . | . . . . . Uniques/NPCs Destroyed . | . . . . . Combat | -11 -10 -10 -9 -9 -------- Run | Jun Mat Min Mat Sto Damage Taken 1458 | . 76 214 23 1145 Core 465 | . 13 44 11 397 Absorbed by Shields 109 | . . . . 109 Core Remaining (%) 88 | 100 . 77 . . Volleys Fired 51 | . 6 20 3 22 Largest 2 | . 2 2 2 2 Hottest 130 | . 80 40 40 130 Shots Fired 96 | . 12 40 6 38 Gun 96 | . 12 40 6 38 Cannon . | . . . . . Launcher . | . . . . . Special . | . . . . . Kinetic 84 | . 2 40 6 36 Thermal 2 | . . . . 2 Explosive . | . . . . . Electromagnetic 10 | . 10 . . . Robot Hit Streak 25 | . 3 19 25 14 Robot Miss Streak 2 | . 2 1 . 1 Penetration Max . | . . . . . Secondary Targets 2 | . . 2 . . Max Gunslinging Chain 1 | . . 1 . . Shots Hit Robots 79 | . 6 34 6 33 Core Hits 31 | . 4 13 3 11 Critical Kills . | . . . . . Critical Parts Destroyed . | . . . . . Critical Strikes . | . . . . . Melee Attacks . | . . . . . Impact . | . . . . . Slashing . | . . . . . Piercing . | . . . . . Sneak Attacks . | . . . . . Combat Hostiles . | . . . . . Follow-up Attacks . | . . . . . Damage Inflicted 730 | . 98 281 48 303 Guns 715 | . 98 281 48 288 Cannons . | . . . . . Explosions . | . . . . . Melee . | . . . . . Ramming 15 | . . . . 15 Kinetic 585 | . . 281 48 256 Thermal 32 | . . . . 32 Explosive . | . . . . . Electromagnetic 98 | . 98 . . . Impact . | . . . . . Slashing . | . . . . . Piercing . | . . . . . Highest Corruption . | . . . . . Average Corruption . | . . . . . Corruption Purged . | . . . . . Corruption Blocked . | . . . . . Overload Shots . | . . . . . Overflow Damage . | . . . . . Projectiles . | . . . . . Explosions . | . . . . . Melee . | . . . . . Knockbacks . | . . . . . Impact . | . . . . . Kinetic . | . . . . . Secondary . | . . . . . Self-Inflicted Damage 1 | . . . . 1 Shots . | . . . . . Rammed 1 | . . . . 1 Targets Rammed 8 | . . . . 8 Kicked 7 | . . . . 7 Crushed . | . . . . . Highest Temperature 90 | . 90 18 6 45 Average Temperature 21 | . 47 9 6 8 Received Heat Transfer 655 | . . 159 9 487 Siege Activations . | . . . . . Robots Corrupted . | . . . . . Combat Hostiles . | . . . . . Parts Fried 3 | . 3 . . . Impact Corruptions . | . . . . . Robots Melted . | . . . . . Combat Hostiles . | . . . . . Parts Melted . | . . . . . Heat Transferred 74 | . . . . 74 Parts Sabotaged . | . . . . . Parts Stolen . | . . . . . Parts Stripped . | . . . . . Power Chain Reactions . | . . . . . Missiles Intercepted . | . . . . . Alert | -11 -10 -10 -9 -9 ------- Run | Jun Mat Min Mat Sto Peak Influence 281 | . 81 116 102 281 Initial 37 | . . 26 37 36 Average 91 | . 46 79 70 136 Maximum Alert Level 1 | . . . . 1 Low Security (%) 88 | 100 100 100 100 73 Level 1 11 | . . . . 26 Level 2 . | . . . . . Level 3 . | . . . . . Level 4 . | . . . . . Level 5 . | . . . . . High Security . | . . . . . Max Security . | . . . . . Squads Dispatched 4 | . . . . 4 Investigation 3 | . . . . 3 Extermination . | . . . . . Reinforcement 1 | . . . . 1 Assault . | . . . . . Garrison . | . . . . . Intercept . | . . . . . Searches Triggered . | . . . . . Construction Impeded . | . . . . . Haulers Reinforced . | . . . . . Active Scanning Responses . | . . . . . Cargo Convoy Interrupts . | . . . . . Stealth | -11 -10 -10 -9 -9 --------- Run | Jun Mat Min Mat Sto Distress Signals 1 | . . . . 1 Communications Jammed . | . . . . . Distress Signals . | . . . . . Times Spotted 35 | . 5 4 2 24 Peak Tracking Total 15 | . 4 2 1 15 Tactical Retreats 3 | . . . . 3 Traps | -11 -10 -10 -9 -9 ------- Run | Jun Mat Min Mat Sto Traps Triggered 1 | . . . . 1 Indirectly . | . . . . . Trap Hack Attempts . | . . . . . Triggered . | . . . . . Disarmed . | . . . . . Reprogrammed . | . . . . . Reused . | . . . . . Traps Extracted . | . . . . . Installed . | . . . . . Triggered . | . . . . . Machines | -11 -10 -10 -9 -9 ---------- Run | Jun Mat Min Mat Sto Machines Disabled . | . . . . . Max in Single Turn . | . . . . . Machines Repaired . | . . . . . Machines Sabotaged . | . . . . . Overloaded Fab Kills . | . . . . . Hacking | -11 -10 -10 -9 -9 --------- Run | Jun Mat Min Mat Sto Machines Accessed 6 | . 1 . 1 4 Terminals 6 | . 1 . 1 4 Fabricators . | . . . . . Repair Stations . | . . . . . Recycling Units . | . . . . . Scanalyzers . | . . . . . Garrison Access . | . . . . . Total Hacks 17 | . 2 . 2 13 Successful 5 | . 1 . 1 3 Failed 12 | . 1 . 1 10 Catastrophic 3 | . . . . 3 Database Lockouts . | . . . . . Manual 5 | . . . 2 3 Terminals 17 | . 2 . 2 13 Fabricators . | . . . . . Repair Stations . | . . . . . Recycling Units . | . . . . . Scanalyzers . | . . . . . Garrison Access . | . . . . . Terminal Hacks 5 | . 1 . 1 3 Part Schematic 2 | . . . . 2 Terminal Index 1 | . . . 1 . Recall Reinforcements 1 | . . . . 1 Zone Layout 1 | . 1 . . . Fabricator Hacks . | . . . . . Repair Station Hacks . | . . . . . Recycling Unit Hacks . | . . . . . Scanalyzer . | . . . . . Garrison Access Hacks . | . . . . . Unauthorized Hacks . | . . . . . Terminals . | . . . . . Fabricators . | . . . . . Repair Stations . | . . . . . Recycling Units . | . . . . . Scanalyzers . | . . . . . Garrison Access . | . . . . . Data Cores Recovered . | . . . . . Used . | . . . . . Hacking Detections 5 | . 1 . . 4 Full Trace Events 3 | . . . . 3 Feedback Events . | . . . . . Feedback Blocked . | . . . . . Robot Schematics Acquired . | . . . . . Robots Built . | . . . . . Authchips . | . . . . . Time . | . . . . . Total Robot Build Rating . | . . . . . Part Schematics Acquired 2 | . . . . 2 Parts Built . | . . . . . Authchips . | . . . . . Time . | . . . . . Total Part Build Rating . | . . . . . Parts Repaired . | . . . . . Time . | . . . . . Parts Recycled . | . . . . . Recycled Matter . | . . . . . Retrieved Matter . | . . . . . Retrieved Components . | . . . . . Parts Scanalyzed . | . . . . . Part Schematics Acquired . | . . . . . Parts Damaged . | . . . . . Bothacking | -11 -10 -10 -9 -9 ------------ Run | Jun Mat Min Mat Sto Used RIF Installer . | . . . . . Robots Hacked . | . . . . . Non-combat . | . . . . . Combat . | . . . . . Robot Hacks Applied . | . . . . . Relay Couplers Released . | . . . . . Fabnet Peak Effective % . | . . . . . Robots Rewired . | . . . . . Allies Hacked . | . . . . . Hacks Repelled . | . . . . . Allies | -11 -10 -10 -9 -9 -------- Run | Jun Mat Min Mat Sto Total Allies . | . . . . . Largest Group . | . . . . . Highest-Rated Group . | . . . . . Highest-Rated Ally . | . . . . . Total Orders . | . . . . . Ally Attacks . | . . . . . Total Damage . | . . . . . Kills . | . . . . . Allies Corrupted . | . . . . . Allies Melted . | . . . . . Intel | -11 -10 -10 -9 -9 ------- Run | Jun Mat Min Mat Sto Robot Analysis Total . | . . . . . Derelict Logs Recovered . | . . . . . Drone Launches . | . . . . . Drone Recoveries . | . . . . . Exploration | -11 -10 -10 -9 -9 ------------- Run | Jun Mat Min Mat Sto Turns Passed 791 | 86 89 149 109 358 Spaces Moved 647 | 65 56 78 79 369 Core 237 | 4 . . . 233 Treads . | . . . . . Legs 410 | 61 56 78 79 136 Wheels . | . . . . . Hover . | . . . . . Flight . | . . . . . Fastest Speed 50 | 50 120 120 120 50 Average Speed 95 | 116 120 120 120 77 Slowest Speed 120 | 120 120 120 120 120 Overloaded Moves . | . . . . . Propulsion Burnouts . | . . . . . Robots Hopped . | . . . . . Cave-ins Triggered . | . . . . . Exploration Rate (%) 20 | 5 15 19 7 54 Regions Visited 4 Branch Regions 2 Pre-discovered Areas . | . . . . . Known Exits Taken . | . . . . . Unknown Exits Taken 4 | 1 1 1 1 . Scrap Searched . | . . . . . Spaces Dug . | . . . . . Terrain Destroyed . | . . . . . Melee . | . . . . . Projectile . | . . . . . AOE . | . . . . . Terrain Rammed . | . . . . . Walls Destroyed . | . . . . . Machines Disabled . | . . . . . Actions | -11 -10 -10 -9 -9 --------- Run | Jun Mat Min Mat Sto Total 732 | 72 65 101 88 406 Wait . | . . . . . Move 643 | 64 55 77 78 369 Hop . | . . . . . Pick Up 8 | 2 2 3 1 . Fast Attach 12 | 6 . 1 1 4 Attach 4 | . . . 1 3 Detach . | . . . . . Swap 4 | . 2 . 2 . Drop 2 | . . . 2 . Fire 51 | . 6 20 3 22 Melee . | . . . . . Ram 1 | . . . . 1 Kick 7 | . . . . 7 Crush . | . . . . . Escape Stasis . | . . . . . Rewire . | . . . . . Trap . | . . . . . Miscellaneous . | . . . . . Route ------- -11/Junkyard -10/Materials -10/Mines -9/Materials -9/Storage History --------- Turn | Location | Event 8 | -11/Junkyard | Discovered new exit (range 16) 87 | -11/Junkyard | Entered Materials 169 | -10/Materials | Discovered new exit (range 6) 176 | -10/Materials | Entered Mines 316 | -10/Mines | Build established: Mutant 317 | -10/Mines | Discovered new exit (range 7) 325 | -10/Mines | Entered Materials 325 | -9/Materials | Evolved 2 slots: Propulsion x1, Utility x1 357 | -9/Materials | Discovered new exit (range 13) 434 | -9/Materials | Entered Storage 577 | -9/Storage | Released all parts (4) 607 | -9/Storage | Lost 4 parts (1p1n2w) 607 | -9/Storage | Released all parts (2) 650 | -9/Storage | Core integrity fell below 50% 765 | -9/Storage | Core integrity fell below 20% 792 | -9/Storage | Destroyed by Y-45 Defender with Heavy Assault Rifle Last Messages --------------- 00740_ G-47 Trooper destroyed. 00740_ G-34 Mercenary destroyed. 00740_ Y-45 Defender destroyed. 00743_ Acquired 41 matter. 00745_ Acquired Aluminum Leg. 00746_ Acquired 10 matter. 00749_ Critical hit (Burn: +37). 00749_ Ion Engine destroyed. 00749_ Acquired Aluminum Leg. 00750_ Acquired 10 matter. 00751_ K-01 Serf collects debris. 00752_ G-34 Mercenary destroyed. 00754_ Kicked Y-45 Defender out of the way. 00754_ K-01 Serf collects debris. 00762_ Kicked Y-45 Defender out of the way. 00764_ Kicked Y-45 Defender. 00765_ Kicked Y-45 Defender out of the way. 00765_ Critical hit (Burn: +37). 00767_ Aluminum Leg destroyed. 00770_ Y-45 Defender suffers critical hit (Burn). Map ----- +----------------------------------------------------+ | ###+#######????? # ##?????# #+##???????????? | | ??# ###"T"#######+# """ #??????????????????????? | | ??# ## + + Y" #???????????????????????? | | ??# + """ # # """ #???????????????????????? | | ??#### """ = # #???????????????????????? | | ?????# """ + #???????????????????????? | | ?????# ### #######???????????????????????? | | ?????#########?# #?????????????????????????????? | | ???????????????## ##??????#??????????????????????? | | ????????????????# #?????? #??????????????????????? | | ????????????????# #???? #??????????????????????? | | ????????????????# #???# ######?????????????????? | | ????????????????# #???# ?????????????????? | | ????????????????# ##### ????????????????? | | ????????????????# #??????????????????????? | | ????????????????# #??????????????????????? | | ??#######???????# #??????????????????????? | | ### ##??????# #??????????????????????? | | T ##?????# rY #??????????????????????? | | = #?????# g "" #??????????????????????? | | **%! *%*[#?????# """" #??????????????????????? | | !""" %%#?????# """" #??????????????????????? | | """ *!*####### """" +??????????????????????? | | """ %[=% %%%""" #??????????????????????? | | =######## """ #??????????????????????? | | #??????# Y Y @#??????????????????????? | | #########??????# g Yg #??????????????????????? | | #???????????#####+######+#####???????????????????? | | ????????????# # #???????????????????? | | ????????????# """# #???????????????????? | | ????????????# """# """"" #???????????????????? | | ????????????# """# """"" #???????????????????? | | ????????????# # """"" #???????????????????? | | ????????????# |# #???????????????????? | | ????????????######## #???????????????????? | | ???????????????????? #???????????????????? | | ??????????????????????########???????????????????? | | ?????????????????????????????????????????????????? | | ?????????????????????????????????????????????????? | | ?????????????????????????????????????????????????? | | ?????????????????????????????????????????????????? | | | | | | | | | | | | | | | | | | | +----------------------------------------------------+ Best States ------------- Heat Dissipation 39 Energy Generation 12 Energy Capacity 265 Matter Stores 300 Matter Capacity 300 Sight Range 16 Terrain Scan Density 10 Resistance: KI 20 Resistance: TH 20 Resistance: EX 20 Resistance: EM 20 Resistance: I 20 Resistance: S 20 Resistance: P 20 Evasion (%) 55 Offensive Hacking 10 Item Schematics ----------------- Carbon-fiber Leg | -9/Storage | Hacked Blade Saw | -9/Storage | Hacked Robot Schematics ------------------ None Fabricated ------------ Nothing Alien Tech Used ----------------- None Achievements -------------- Party Time Challenges ------------ None Game ------ Seed SmartbombRiotMediator Manual? 0 Play Time 00:15:19 Cumulative 34.6 hours Start 2023.05.03 @ 14:59:52 End 2023.05.03 @ 15:15:46 Sessions 1 Manual Loads 0 Difficulty Adventurer Special Mode None Game No. 65 Rogue 0 Adventurer 4 Explorer 61 Win Type - Total 0 Types 0/0/0/0/0/0/0/0/0 Lore% 7 Gallery% 28 Achievement% 23 Wizard Run 0 Options --------- ASCII 0 Keyboard 1 Movement Arrows Keybinds 0 Fullscreen 1 Font 18/SmallcapsGlow Map View 76x50 Tactical HUD 1 Map Filters NONE Filters NONE Steam 1 RUN: f771315a-bfeb-4315-a6ee-872d83d39383